fUST/lending_fUST_20251112
["ID","MTS","AMOUNT","RATE_DAILY","PERIOD"]
[393651933,1762879838500,-1264.63,0.00014488,2]
[393651934,1762879838510,-1264.63,0.00014488,2]
[393651935,1762879838519,-1264.63,0.00014488,2]
[393651936,1762879838529,-1264.63,0.00014488,2]
[393651937,1762879838539,-1264.63,0.00014488,2]
[393651938,1762879838548,-1264.63,0.00014488,2]
[393651939,1762879838558,-1264.63,0.00014488,2]
[393651940,1762879838568,-1264.63,0.00014488,2]
[393651941,1762879838578,-1264.63,0.00014488,2]
[393651942,1762879838590,-1264.63,0.00014488,2]
[393651943,1762879838599,-1264.63,0.00014488,2]
[393651944,1762879838609,-1264.63,0.00014488,2]
[393651945,1762879838619,-1264.63,0.00014488,2]
[393651946,1762879838628,-1264.63,0.00014488,2]
[393651947,1762879838638,-1264.63,0.00014488,2]
[393651948,1762879838648,-1264.63,0.00014488,2]
[393651949,1762879838658,-1264.63,0.00014488,2]
[393651950,1762879838668,-1264.63,0.00014488,2]
[393651951,1762879838678,-1264.63,0.00014488,2]
[393651952,1762879838688,-1264.75103466,0.00014488,2]
[393651953,1762879838698,-8310.7022866,0.00014489,2]
[393652164,1762879842856,-3716.00478462,0.00014489,2]
[393652182,1762879843015,-415.07431893,0.00014489,2]
[393652293,1762879846027,-8131.02786711,0.00014489,2]
[393652295,1762880032519,422.4094636,0.00018077,5]
[393652296,1762880150628,210.85,0.00018807,30]
[393652297,1762880230432,209.7,0.00019116,30]
[393652304,1762880360576,10000.0,0.00020219,59]
[393652305,1762880387681,19000.0,0.0002,30]
[393652306,1762880389463,-386.24495285,0.00014278,2]
[393652307,1762880395688,-300.69357695,0.00014278,2]
[393652308,1762880404426,906.4778728,0.00032877,120]
[393652309,1762880413310,20000.0,0.00036481,90]
[393652310,1762880426504,10529.01570661,0.0001875,9]
[393652312,1762880584416,-343.84510446,0.00014371,2]
[393652313,1762880588723,-210.3783413,0.00014371,2]
[393652314,1762880591782,-320.80377826,0.00014371,2]
[393652315,1762880595228,-326.56991812,0.00014371,2]
[393652316,1762880598888,-412.5963803,0.00014371,2]
[393652317,1762880602957,-291.58822326,0.00014371,2]
[393652318,1762880709078,15240.1,0.00036502,20]
[393652321,1762880839502,-889.89113867,0.00014288,2]
[393652322,1762880841909,-177.67458026,0.00014288,2]
[393652323,1762880844629,-238.32672671,0.00014288,2]
[393652324,1762880869435,-209.14531167,0.00014288,2]
[393652325,1762880872355,-223.08686175,0.00014288,2]
[393652326,1762880873945,-158.86447604,0.00014288,2]
[393652327,1762880877322,-181.9297246,0.00014288,2]
[393652328,1762880878919,-289.17869704,0.00014288,2]
[393652329,1762880880507,-149.54377181,0.00014288,2]
[393652330,1762880880529,-89.8956673,0.00014383,2]
[393652331,1762880881054,577.83450711,0.00014059,2]
[393652332,1762880882178,-174.5403129,0.00014383,2]
[393652333,1762880884518,-169.01444412,0.00014383,2]
[393652334,1762880929510,-197.99063882,0.00014383,2]
[393652335,1762880932661,-266.72851045,0.00014383,2]
[393652336,1762880936845,407.20937387,0.00018077,5]
[393652337,1762880944467,-300.0,0.00014382,2]
[393652338,1762880944492,-76.5703439,0.00014383,2]
[393652339,1762880947114,-300.0,0.00014383,2]
[393652340,1762880948625,-15.15574981,0.00014383,2]
[393652341,1762880948646,-171.52565003,0.00014383,2]
[393652343,1762880954181,-182.1084991,0.00014383,2]
[393652344,1762880956027,-146.36585087,0.00014383,2]
[393652345,1762880956049,-205.93510845,0.00014383,2]
[393652346,1762880964660,510.1669457,0.00036502,120]
[393652347,1762881019436,-300.0,0.00014382,2]
[393652348,1762881019463,-99.71080467,0.00014382,2]
[393652388,1762881031928,-200.28919533,0.00014382,2]
[393652390,1762881031938,-1200.0,0.00014382,2]
[393652392,1762881031948,-300.0,0.00014382,2]
[393652394,1762881031958,-195.40065809,0.00014383,2]
[393652396,1762881031967,-41741.95138406,0.00014384,2]
[393652398,1762881031976,-150.0,0.00014385,2]
[393652400,1762881031986,-164.1545344,0.00014388,2]
[393652402,1762881031995,-777000.0,0.00014389,2]
[393652403,1762881032004,-300.0,0.000145,2]
[393652405,1762881032013,-9667.9181019,0.00014521,2]
[393652408,1762881032026,-502.13630347,0.00014573,2]
[393652409,1762881032035,-2199.94065742,0.00014729,2]
[393652411,1762881032045,-10952.31286601,0.0001499,2]
[393652413,1762881032054,-404.22018261,0.00015559,2]
[393652415,1762881032064,-198.0,0.0001562,2]
[393652417,1762881032073,-151.0,0.0001562,2]
[393652419,1762881032083,-198.0,0.0001562,2]
[393652421,1762881032093,-151.0,0.0001562,2]
[393652423,1762881032102,-198.0,0.0001562,2]
[393652425,1762881032111,-151.0,0.0001562,2]
[393652427,1762881032121,-198.0,0.0001562,2]
[393652441,1762881032238,-500.0,0.0001562,2]
[393652444,1762881032251,-151.0,0.0001562,2]
[393652446,1762881032260,-151.0,0.0001562,2]
[393652448,1762881032270,-151.0,0.00015675,2]
[393652450,1762881032278,-500.0,0.00015675,2]
[393652452,1762881032288,-151.0,0.00015675,2]
[393652454,1762881032297,-199.4880618,0.00015675,2]
[393652456,1762881032305,-151.0,0.0001573,2]
[393652457,1762881032315,-500.0,0.0001573,2]
[393652460,1762881032324,-151.0,0.0001573,2]
[393652462,1762881032334,-420.0,0.0001575,2]
[393652464,1762881032343,-151.0,0.00015784,2]
[393652466,1762881032352,-500.0,0.00015784,2]
[393652468,1762881032361,-151.0,0.00015784,2]
[393652470,1762881032370,-814.0,0.0001582,2]
[393652471,1762881032379,-151.0,0.00015839,2]
[393652473,1762881032388,-500.0,0.00015839,2]
[393652476,1762881032398,-151.0,0.00015839,2]
[393652478,1762881032407,-245.0,0.00015894,2]
[393652480,1762881032417,-500.0,0.00015894,2]
[393652482,1762881032426,-245.0,0.00015894,2]
[393652484,1762881032435,-500.0,0.00015949,2]
[393652486,1762881032444,-461.96592298,0.00016346,2]
[393652488,1762881032457,-177.0,0.00016385,2]
[393652490,1762881032467,-501.82991833,0.00016473,2]
[393652492,1762881032476,-503.81842558,0.00016473,2]
[393652493,1762881032486,-308.57719021,0.00016473,2]
[393652495,1762881032496,-500.0,0.00016473,2]
[393652498,1762881032505,-500.0,0.00016473,2]
[393652500,1762881032515,-501.73645282,0.00016473,2]
[393652502,1762881032527,-500.0,0.00016473,2]
[393652504,1762881032537,-436.91889846,0.00016473,2]
[393652506,1762881032546,-510.41448151,0.00016473,2]
[393652508,1762881032555,-500.0,0.00016473,2]
[393652510,1762881032564,-500.0,0.00016473,2]
[393652512,1762881032573,-500.0,0.00016473,2]
[393652514,1762881032582,-500.0,0.00016473,2]
[393652516,1762881032591,-500.0,0.00016473,2]
[393652518,1762881032600,-1057.94763677,0.00016542,2]
[393652520,1762881032609,-226.68886541,0.00016654,2]
[393652522,1762881032618,-1057.94763677,0.00016707,2]
[393652524,1762881032627,-168.0,0.00016821,2]
[393652526,1762881032636,-1057.94763677,0.00016871,2]
[393652528,1762881032645,-1105.60117365,0.00017021,2]
[393652530,1762881032655,-487.97674061,0.00017021,2]
[393652532,1762881032664,-1000.0,0.00017021,2]
[393652534,1762881032673,-1000.0,0.00017021,2]
[393652536,1762881032682,-512.13862,0.00017021,2]
[393652538,1762881032691,-500.0,0.00017021,2]
[393652540,1762881032700,-1000.0,0.00017021,2]
[393652542,1762881032709,-535.65738989,0.00017021,2]
[393652544,1762881032718,-1057.94763677,0.00017036,2]
[393652545,1762881032727,-363.97280503,0.00017164,2]
[393652548,1762881032737,-1057.94763677,0.00017201,2]
[393652550,1762881032746,-408.00914098,0.00017209,2]
[393652551,1762881032755,-450.0,0.00017249,2]
[393652552,1762881032764,-168.0,0.00017284,2]
[393652553,1762881032775,-1057.94763677,0.00017366,2]
[393652554,1762881032786,-168.0,0.00017525,2]
[393652555,1762881032795,-1057.94763677,0.00017531,2]
[393652556,1762881032804,-168.0,0.00017549,2]
[393652557,1762881032813,-168.0,0.00017563,2]
[393652558,1762881032822,-1510.00068975,0.00017568,2]
[393652559,1762881032831,-1500.0,0.00017568,2]
[393652560,1762881032840,-734.41645376,0.00017592,2]
[393652561,1762881032850,-168.0,0.00017593,2]
[393652562,1762881032859,-168.0,0.00017639,2]
[393652564,1762881032868,-1057.94763677,0.00017696,2]
[393652566,1762881032877,-160.0,0.00017753,2]
[393652568,1762881032886,-1057.94763677,0.00017861,2]
[393652571,1762881032895,-168.0,0.00017865,2]
[393652572,1762881032905,-5505.01383029,0.00017964,2]
[393652574,1762881032914,-1305.62925113,0.00017975,2]
[393652576,1762881032923,-1059.00558441,0.00018026,2]
[393652578,1762881032932,-300.0,0.000181,2]
[393652580,1762881032942,-300.0,0.000181,2]
[393652582,1762881032951,-300.0,0.000181,2]
[393652584,1762881032960,-300.0,0.000181,2]
[393652586,1762881032969,-300.0,0.000181,2]
[393652588,1762881032978,-300.0,0.000181,2]
[393652590,1762881032986,-300.0,0.000181,2]
[393652592,1762881032996,-300.0,0.000181,2]
[393652594,1762881033005,-168.0,0.00018109,2]
[393652596,1762881033014,-2000.0,0.00018116,2]
[393652598,1762881033027,-168.0,0.0001815,2]
[393652600,1762881033036,-260.0,0.00018301,2]
[393652602,1762881033046,-2040.04570489,0.00018358,2]
[393652604,1762881033055,-204.0,0.00018385,2]
[393652606,1762881033065,-168.0,0.00018404,2]
[393652608,1762881033074,-400.09383847,0.00018413,2]
[393652609,1762881033083,-5000.0,0.00018446,2]
[393652610,1762881033093,-171.1100387,0.00018581,5]
[393652611,1762881033102,-2594.90459435,0.00018664,2]
[393652612,1762881033111,-168.0,0.00018776,2]
[393652613,1762881033121,-240.0,0.00018849,2]
[393652614,1762881033130,-168.0,0.00018859,2]
[393652615,1762881033140,-168.0,0.0001888,2]
[393652616,1762881033149,-1687.94821655,0.00018938,5]
[393652617,1762881033159,-226.68886541,0.00018955,2]
[393652618,1762881033168,-198.86529649,0.00019537,2]
[393652619,1762881033177,-389.83731046,0.0002,2]
[393652620,1762881033186,-1294.66627778,0.0002,2]
[393652621,1762881033196,-567.080397,0.00020187,2]
[393652622,1762881033205,-231.0,0.00020385,2]
[393652623,1762881033215,-500.0,0.00020547,2]
[393652624,1762881033224,-397.20401964,0.00020565,2]
[393652625,1762881033236,-275.2228115,0.00021,2]
[393652626,1762881033245,-751.0,0.00021,2]
[393652627,1762881033254,-3000.0,0.00021,2]
[393652628,1762881033264,-3000.0,0.0002101,2]
[393652629,1762881033274,-3000.0,0.0002102,2]
[393652630,1762881033283,-3000.0,0.0002103,2]
[393652631,1762881033292,-3000.0,0.0002104,2]
[393652632,1762881033302,-3000.0,0.0002105,2]
[393652633,1762881033311,-3000.0,0.0002106,2]
[393652634,1762881033321,-3000.0,0.0002107,2]
[393652635,1762881033330,-3000.0,0.0002108,2]
[393652636,1762881033339,-153.057081,0.0002108,7]
[393652637,1762881033348,-151.0,0.0002108,7]
[393652638,1762881033358,-3000.0,0.0002109,2]
[393652639,1762881033367,-151.86538,0.0002109,7]
[393652640,1762881033376,-151.0,0.0002109,2]
[393652641,1762881033385,-3000.0,0.000211,2]
[393652642,1762881033395,-151.0,0.000211,7]
[393652643,1762881033405,-235.83312649,0.000211,7]
[393652644,1762881033414,-151.0,0.000211,7]
[393652645,1762881033423,-151.0,0.000211,7]
[393652646,1762881033434,-262.456814,0.000211,7]
[393652647,1762881033445,-3000.0,0.0002111,2]
[393652648,1762881033456,-3000.0,0.0002112,2]
[393652649,1762881033467,-3000.0,0.0002113,2]
[393652650,1762881033476,-3000.0,0.0002114,2]
[393652651,1762881033485,-3000.0,0.0002115,2]
[393652652,1762881033495,-3000.0,0.0002116,2]
[393652653,1762881033504,-3000.0,0.0002117,2]
[393652654,1762881033513,-472.45402741,0.00021173,2]
[393652655,1762881033523,-500.0,0.00021173,2]
[393652656,1762881033533,-500.0,0.00021173,2]
[393652657,1762881033543,-500.02055795,0.00021173,2]
[393652658,1762881033553,-500.0,0.00021173,2]
[393652659,1762881033562,-500.0,0.00021173,2]
[393652660,1762881033571,-3000.0,0.0002118,2]
[393652661,1762881033581,-3000.0,0.0002119,2]
[393652662,1762881033590,-3000.0,0.000212,2]
[393652663,1762881033599,-165.716723,0.000212,7]
[393652664,1762881033608,-3000.0,0.0002121,2]
[393652665,1762881033617,-3000.0,0.0002122,2]
[393652666,1762881033626,-3000.0,0.0002123,2]
[393652667,1762881033635,-5950.546894,0.0002124,2]
[393652668,1762881033644,-226.68886541,0.00021256,2]
[393652669,1762881033654,-413.0,0.00021521,2]
[393652670,1762881033663,-419.539,0.00021521,2]
[393652671,1762881033672,-155.01,0.00022,14]
[393652672,1762881033681,-9526.45,0.00022,7]
[393652673,1762881033691,-359.29672664,0.00022,2]
[393652674,1762881033700,-544.92,0.00022,7]
[393652675,1762881033710,-1000.0,0.000222,2]
[393652676,1762881033720,-1000.0,0.000222,2]
[393652677,1762881033729,-1000.0,0.000222,2]
[393652678,1762881033738,-1000.0,0.000222,2]
[393652679,1762881033748,-1000.0,0.000222,2]
[393652680,1762881033757,-258.0,0.00022385,2]
[393652681,1762881033766,-168.0,0.000224,2]
[393652682,1762881033777,-168.0,0.000225,2]
[393652683,1762881033786,-168.0,0.00022551,2]
[393652684,1762881033795,-168.0,0.00022741,2]
[393652685,1762881033804,-168.0,0.00022952,2]
[393652686,1762881033813,-168.0,0.00023452,2]
[393652687,1762881033822,-93663.83940165,0.00023498,2]
[393652688,1762881033835,-30685.98305537,0.00023498,2]
[393652689,1762881033846,-236.263936,0.00023498,2]
[393652690,1762881033855,-151.0,0.00023498,7]
[393652691,1762881033865,-151.0,0.00023498,7]
[393652692,1762881033874,-151.0,0.00023498,7]
[393652693,1762881033883,-151.0,0.00023498,7]
[393652694,1762881033893,-226.68886541,0.00023557,2]
[393652695,1762881033906,-269.41998301,0.00023994,2]
[393652696,1762881033916,-168.0,0.00024051,2]
[393652697,1762881033925,-16140.86527468,0.00024142,2]
[393652698,1762881033934,-168.0,0.00024216,2]
[393652699,1762881033944,-168.0,0.00024228,2]
[393652700,1762881033953,-486.62,0.00024272,2]
[393652701,1762881033962,-285.0,0.00024385,2]
[393652702,1762881033972,-413.0,0.00024521,2]
[393652703,1762881033982,-148.27153753,0.00024521,2]
[393652732,1762881037728,-500.0,0.00014382,2]
[393652734,1762881037738,-500.0,0.00014382,2]
[393652736,1762881037747,-550.65527595,0.00014382,2]
[393652738,1762881037757,-500.0,0.00014382,2]
[393652740,1762881037766,-500.0,0.00014382,2]
[393652743,1762881037776,-500.0,0.00014382,2]
[393652745,1762881037786,-500.0,0.00014382,2]
[393652747,1762881037795,-500.0,0.00014382,2]
[393652749,1762881037805,-396.9524379,0.00014382,2]
[393652751,1762881037814,-324.80794215,0.00014382,2]
[393652753,1762881037825,-175.19205785,0.00014382,2]
[393652755,1762881037834,-500.0,0.00014382,2]
[393652757,1762881037843,-500.0,0.00014382,2]
[393652759,1762881037853,-500.0,0.00014382,2]
[393652761,1762881037862,-422.63735735,0.00014382,2]
[393652883,1762881040282,-3e-08,0.00014382,2]
[393652886,1762881040294,-77.36264262,0.00014382,2]
[393652888,1762881040303,-402.7168309,0.00014382,2]
[393653545,1762881072391,-97.2831691,0.00014382,2]
[393653546,1762881072402,-500.0,0.00014382,2]
[393653547,1762881072411,-500.0,0.00014382,2]
[393653548,1762881072422,-223.7023201,0.00014382,2]
[393653549,1762881072431,-500.0,0.00014382,2]
[393653550,1762881072440,-179.0094868,0.00014382,2]
[393653551,1762881072643,10000.01,0.00014289,2]
[393653552,1762881103573,165.571,0.00014003,2]
[393653553,1762881180865,369.4964703,0.00014187,2]
[393653554,1762881186849,-1200.0,0.00014287,2]
[393653555,1762881186877,-300.0,0.00014287,2]
[393653556,1762881202524,-194.21262344,0.00014288,2]
[393653557,1762881202555,-500.0,0.00014288,2]
[393653558,1762881202585,-500.0,0.00014288,2]
[393653559,1762881202613,-598.35648918,0.00014288,2]
[393653560,1762881202641,-500.0,0.00014288,2]
[393653561,1762881202671,-500.0,0.00014288,2]
[393653562,1762881202700,-500.0,0.00014288,2]
[393653563,1762881202727,-404.96765326,0.00014288,2]
[393653564,1762881202756,-500.0,0.00014288,2]
[393653565,1762881202784,-500.0,0.00014288,2]
[393653566,1762881202811,-104.93646824,0.00014288,2]
[393653567,1762881202824,-194.21262344,0.00014288,2]
[393653568,1762881202835,-200.85090832,0.00014288,2]
[393653569,1762881202845,-299.14909168,0.00014288,2]
[393653570,1762881202857,-200.85090832,0.00014288,2]
[393653571,1762881202866,-286.62603273,0.00014288,2]
[393653572,1762881202876,-12.52305895,0.00014288,2]
[393653573,1762881202891,-577.17218484,0.00014288,2]
[393653574,1762881202900,-21.18430434,0.00014288,2]
[393653575,1762881202912,-478.81569566,0.00014288,2]
[393653576,1762881202923,-21.18430434,0.00014288,2]
[393653577,1762881202935,-478.81569566,0.00014288,2]
[393653578,1762881202945,-21.18430434,0.00014288,2]
[393653579,1762881202956,-478.81569566,0.00014288,2]
[393653580,1762881202967,-21.18430434,0.00014288,2]
[393653581,1762881202999,-478.81569566,0.00014288,2]
[393653582,1762881203032,-500.0,0.00014288,2]
[393653583,1762881203068,-500.0,0.00014288,2]
[393653584,1762881203099,-500.0,0.00014288,2]
[393653585,1762881203129,-350.39945919,0.00014288,2]
[393653586,1762881203163,-500.0,0.00014288,2]
[393653587,1762881203195,-219.39071528,0.00014288,2]
[393653588,1762881203321,-500.0,0.00014288,2]
[393653589,1762881203354,-500.0,0.00014288,2]
[393653590,1762881203387,-538.89146188,0.00014288,2]
[393653591,1762881203420,-325.01533598,0.00014288,2]
[393653592,1762881203433,-174.98466402,0.00014288,2]
[393653593,1762881203444,-229.98298924,0.00014288,2]
[393653594,1762881203455,-270.01701076,0.00014288,2]
[393653595,1762881203466,-229.98298924,0.00014288,2]
[393653596,1762881203479,-270.01701076,0.00014288,2]
[393653597,1762881203490,-229.98298924,0.00014288,2]
[393653598,1762881203503,-270.01701076,0.00014288,2]
[393653599,1762881203516,-229.98298924,0.00014288,2]
[393653600,1762881203551,-70.01701076,0.00014288,2]
[393653601,1762881203583,-500.0,0.00014288,2]
[393653602,1762881203613,-425.15855154,0.00014288,2]
[393653605,1762881242380,300.0,0.00014288,2]
[393653606,1762881246203,630.18575595,0.00014288,2]
[393653607,1762881246235,500.0,0.00014288,2]
[393653608,1762881246267,500.0,0.00014288,2]
[393653609,1762881246295,500.0,0.00014288,2]
[393653610,1762881246324,500.0,0.00014288,2]
[393653611,1762881246352,500.0,0.00014288,2]
[393653612,1762881246381,500.0,0.00014288,2]
[393653613,1762881246410,500.0,0.00014288,2]
[393653614,1762881246441,500.0,0.00014288,2]
[393653615,1762881246471,500.0,0.00014288,2]
[393653616,1762881246505,500.0,0.00014288,2]
[393653617,1762881246539,500.0,0.00014288,2]
[393653618,1762881246573,500.0,0.00014288,2]
[393653619,1762881246604,500.0,0.00014288,2]
[393653620,1762881246633,493.50489685,0.00014288,2]
[393653621,1762881246663,85.9682226,0.00014288,2]
[393653622,1762881246686,414.0317774,0.00014288,2]
[393653623,1762881246719,500.0,0.00014288,2]
[393653624,1762881246748,500.0,0.00014288,2]
[393653625,1762881246777,500.0,0.00014288,2]
[393653626,1762881246806,220.9397242,0.00014288,2]
[393653627,1762881246836,500.0,0.00014288,2]
[393653628,1762881246865,500.0,0.00014288,2]
[393653629,1762881246899,500.0,0.00014288,2]
[393653630,1762881246929,500.0,0.00014288,2]
[393653631,1762881246960,213.90460794,0.00014288,2]
[393653632,1762881246989,282.80540112,0.00014288,2]
[393653633,1762881247024,500.0,0.00014288,2]
[393653634,1762881247053,500.0,0.00014288,2]
[393653635,1762881247365,500.0,0.00014288,2]
[393653636,1762881247402,500.0,0.00014288,2]
[393653637,1762881247688,546.92498284,0.00014288,2]
[393653638,1762881258775,499.99999999,0.00014288,2]
[393653639,1762881262529,500.0,0.00014288,2]
[393653640,1762881262561,633.6491118,0.00014288,2]
[393653641,1762881262615,500.0,0.00014288,2]
[393653642,1762881272265,500.0,0.00014288,2]
[393653643,1762881272304,187.75439471,0.00014288,2]
[393653644,1762881272328,94.34465661,0.00014288,2]
[393653645,1762881272358,500.0,0.00014288,2]
[393653646,1762881272456,500.0,0.00014288,2]
[393653647,1762881272485,246.77108047,0.00014288,2]
[393653648,1762881272519,181.46720671,0.00014288,2]
[393653649,1762881272563,437.47210706,0.00014288,2]
[393653650,1762881272593,307.3684109,0.00014288,2]
[393653651,1762881302508,300.0,0.00014288,2]
[393653652,1762881339820,510.372357,0.00013699,2]
[393653654,1762881499440,-202.11478257,0.00014289,2]
[393653655,1762881502060,-151.29382709,0.00014289,2]
[393653656,1762881504906,-840.8339878,0.00014289,2]
[393653657,1762881511125,-180.98718107,0.00014289,2]
[393653658,1762881543322,300.0,0.00014288,2]
[393653659,1762881586168,500.0,0.00014288,2]
[393653660,1762881586206,500.0,0.00014288,2]
[393653661,1762881586237,500.0,0.00014288,2]
[393653662,1762881586272,500.0,0.00014288,2]
[393653663,1762881586301,500.0,0.00014288,2]
[393653664,1762881586332,500.0,0.00014288,2]
[393653665,1762881586370,500.0,0.00014288,2]
[393653666,1762881586399,404.4680151,0.00014288,2]
[393653667,1762881586428,438.51949943,0.00014288,2]
[393653668,1762881586460,500.0,0.00014288,2]
[393653669,1762881586491,154.81831569,0.00014288,2]
[393653670,1762881586524,500.0,0.00014288,2]
[393653671,1762881586555,500.0,0.00014288,2]
[393653672,1762881586583,396.28470313,0.00014288,2]
[393653673,1762881586612,228.1236479,0.00014288,2]
[393653674,1762881586639,271.8763521,0.00014288,2]
[393653675,1762881586671,500.0,0.00014288,2]
[393653676,1762881586701,500.0,0.00014288,2]
[393653677,1762881586733,500.0,0.00014288,2]
[393653678,1762881586763,500.0,0.00014288,2]
[393653679,1762881586792,500.0,0.00014288,2]
[393653680,1762881586822,500.0,0.00014288,2]
[393653681,1762881586852,500.0,0.00014288,2]
[393653682,1762881586881,250.0,0.00014288,2]
[393653683,1762881586910,502.82308269,0.00014288,2]
[393653684,1762881586940,500.0,0.00014288,2]
[393653685,1762881586971,500.0,0.00014288,2]
[393653686,1762881587009,500.0,0.00014288,2]
[393653687,1762881587039,500.0,0.00014288,2]
[393653688,1762881587159,500.0,0.00014288,2]
[393653689,1762881587190,500.0,0.00014288,2]
[393653690,1762881587220,500.0,0.00014288,2]
[393653691,1762881587252,500.0,0.00014288,2]
[393653692,1762881587283,500.0,0.00014288,2]
[393653693,1762881587313,500.0,0.00014288,2]
[393653694,1762881587343,475.31056521,0.00014288,2]
[393653695,1762881587366,24.68943479,0.00014288,2]
[393653696,1762881587396,500.0,0.00014288,2]
[393653697,1762881587427,500.0,0.00014288,2]
[393653698,1762881587457,500.0,0.00014288,2]
[393653699,1762881587486,500.0,0.00014288,2]
[393653700,1762881587516,500.0,0.00014288,2]
[393653701,1762881587545,500.0,0.00014288,2]
[393653702,1762881587575,500.0,0.00014288,2]
[393653703,1762881587604,500.0,0.00014288,2]
[393653704,1762881587635,500.0,0.00014288,2]
[393653705,1762881587664,500.0,0.00014288,2]
[393653706,1762881587694,500.0,0.00014288,2]
[393653707,1762881587776,500.0,0.00014288,2]
[393653708,1762881587805,500.0,0.00014288,2]
[393653709,1762881587843,500.0,0.00014288,2]
[393653710,1762881587872,500.0,0.00014288,2]
[393653711,1762881587901,319.21097127,0.00014288,2]
[393653712,1762881587932,500.0,0.00014288,2]
[393653713,1762881587963,500.0,0.00014288,2]
[393653714,1762881587997,500.0,0.00014288,2]
[393653715,1762881588026,500.0,0.00014288,2]
[393653716,1762881615552,156.10959394,0.00014288,2]
[393653717,1762881615578,343.89040606,0.00014288,2]
[393653718,1762881615609,500.0,0.00014288,2]
[393653719,1762881615649,500.0,0.00014288,2]
[393653720,1762881615682,500.0,0.00014288,2]
[393653721,1762881615714,631.92109713,0.00014288,2]
[393653722,1762881615767,500.0,0.00014288,2]
[393653723,1762881615816,500.0,0.00014288,2]
[393653724,1762881615869,500.0,0.00014288,2]
[393653725,1762881615929,500.0,0.00014288,2]
[393653726,1762881621670,201.029416,0.00032877,120]
[393653727,1762881648247,2466.58652087,0.000142,2]
[393653728,1762881668986,935.75471673,0.00014288,2]
[393653729,1762881669023,935.75471673,0.00014288,2]
[393653730,1762881669057,935.75471673,0.00014288,2]
[393653731,1762881669091,250.34782575,0.00014288,2]
[393653732,1762881669121,685.40689098,0.00014288,2]
[393653733,1762881669255,935.75471673,0.00014288,2]
[393653734,1762881669291,500.0,0.00014288,2]
[393653735,1762881669326,935.75471673,0.00014288,2]
[393653736,1762881669359,935.75471673,0.00014288,2]
[393653737,1762881669393,935.75471673,0.00014288,2]
[393653738,1762881669428,935.75471673,0.00014288,2]
[393653739,1762881669462,935.75471673,0.00014288,2]
[393653740,1762881669495,935.75471673,0.00014288,2]
[393653741,1762881669529,935.75471673,0.00014288,2]
[393653742,1762881669562,935.75471673,0.00014288,2]
[393653743,1762881669607,392.81065845,0.00014288,2]
[393653744,1762881669638,542.94405828,0.00014288,2]
[393653745,1762881669724,500.0,0.00014288,2]
[393653746,1762881669757,935.75471673,0.00014288,2]
[393653747,1762881669788,935.75471673,0.00014288,2]
[393653748,1762881669824,935.75471673,0.00014288,2]
[393653749,1762881669856,935.75471673,0.00014288,2]
[393653750,1762881669897,935.75471673,0.00014288,2]
[393653751,1762881669929,935.75471673,0.00014288,2]
[393653752,1762881669961,935.75471673,0.00014288,2]
[393653753,1762881669992,935.75471673,0.00014288,2]
[393653754,1762881670022,935.75471673,0.00014288,2]
[393653755,1762881670054,535.27349115,0.00014288,2]